[Event "Djerba Festival Masters 2024"]
[Site "Djerba"]
[Date "2024.02.18"]
[Round "1.1"]
[White "Moussard, Jules"]
[Black "Dardha, Daniel"]
[Result "1/2-1/2"]
[ECO "D02"]
[WhiteElo "2630"]
[BlackElo "2602"]
[Annotator "TA"]
[PlyCount "55"]
[EventDate "2024.02.18"]
[EventType "tourn"]
[EventCountry "TUN"]
[SourceTitle "playchess.com"]
[Source "ChessBase"]
[SourceQuality "1"]
[TimeControl "5400+30"]

{[%evp 12,55,29,16,23,27,46,43,35,39,44,41,39,35,46,39,33,35,41,30,30,37,56,0,14,-1,0,-2,0,0,0,-22,0,0,0,0,0,0,0,0,7,10,8,6,5,0]} 1. Nf3 {[%emt 0:00:03]} d5 {[%emt 0:00:27]} 2. g3 {[%emt 0:00:14]} Nc6 {[%emt 0:01:11]} 3. d4 {[%emt 0:00:07]} Bf5 {[%emt 0:00:06]} 4. Bg2 {[%emt 0:00:19]} Nb4 {[%emt 0:00:12]} 5. Na3 {[%emt 0:00:06]} e6 {[%emt 0:00:11]} 6. O-O {[%emt 0:02:29]} Nc6 {[%emt 0:01:11]} 7. Nb1 {[%emt 0:01:49][%cal Oc2c4]} Nb4 {[%emt 0:01:10]} 8. Ne1 {[%emt 0:01:23]} Nf6 {[%emt 0:01:42]} 9. c3 {[%emt 0:06:37] Against c5} Nc6 {[%emt 0:00:16] White is slightly better.} 10. Bg5 {[%emt 0:00:54]} Be7 {[%emt 0:00:09]} 11. Nd2 {[%emt 0:03:17]} Ne4 {[%emt 0:02:49]} 12. Bxe7 {[%emt 0:09:54]} Qxe7 {[%emt 0:01:33]} 13. Nxe4 {[%emt 0:04:34]} Bxe4 {[%emt 0:00:18]} 14. f3 {[%emt 0:16:16]} Bg6 {[%emt 0:00:09]} 15. e4 {[%emt 0:01:49]} O-O {[%emt 0:01:02]} 16. Nd3 {[%emt 0:03:12]} Rad8 {[%emt 0:04:30]} 17. e5 {[%emt 0:10:01]} Na5 {[%emt 0:02:59] The position is equal.} 18. Qe2 {[%emt 0:03:40]} Bxd3 {[%emt 0:10:25]} 19. Qxd3 {[%emt 0:00:09]} c5 {[%emt 0:00:08]} 20. f4 {[%emt 0:01:55]} g6 {[%emt 0:08:51]} 21. Rad1 {[%emt 0:06:45]} cxd4 {[%emt 0:03:00]} 22. Qxd4 {[%emt 0:00:49]} b5 {[%emt 0:04:57]} 23. g4 $1 {[%emt 0:01:32]} Rc8 {[%emt 0:07:52]} 24. Rf2 {[%emt 0:04:26]} Qh4 {[%emt 0:02:43]} 25. h3 {[%emt 0:01:14]} Nc6 {[%emt 0:02:33]} 26. Qe3 {[%emt 0:00:46]} Kh8 {[%emt 0:02:19]} 27. a3 {[%emt 0:04:08]} a6 {[%emt 0:04:15]} 28. Bf1 {[%emt 0:02:05] Weighted Error Value: White=0.05 (flawless) /Black=0.03 (flawless) .  Inaccurate:     	White=1     	---        OK:         	White=10    	Black=10     Strong:       	White=1     	---} 1/2-1/2

[Event "Djerba Festival Masters 2024"]
[Site "Djerba"]
[Date "2024.02.18"]
[Round "1.2"]
[White "Niemann, Hans Moke"]
[Black "Tari, Aryan"]
[Result "1-0"]
[ECO "D02"]
[WhiteElo "2692"]
[BlackElo "2623"]
[Annotator "TA"]
[PlyCount "69"]
[EventDate "2024.02.18"]
[EventType "tourn"]
[EventCountry "TUN"]
[SourceTitle "playchess.com"]
[Source "ChessBase"]
[SourceQuality "1"]
[TimeControl "5400+30"]

{[%evp 9,69,17,12,7,2,0,3,15,43,41,52,52,116,116,107,110,158,165,152,162,158,130,200,169,152,87,96,86,171,152,169,155,159,150,231,193,192,168,182,142,337,328,405,397,454,379,406,383,422,449,396,305,916,894,876,929,955,939,931,886,1192,1181]} 1. d4 {[%emt 0:00:06]} d5 {[%emt 0:00:16]} 2. Nf3 {[%emt 0:00:27]} Nf6 {[%emt 0:00:08]} 3. g3 {[%emt 0:00:13]} Bf5 {[%emt 0:02:06]} 4. Nh4 {[%emt 0:00:29]} Be4 {[%emt 0:04:24]} 5. f3 {[%emt 1:31:45]} Bg6 {[%emt 0:00:05] [#]} 6. c4 $1 {[%emt 0:00:00]} c5 {[%emt 0:23:12][%cal Bc7c5,Bc5d4,Bd4e3][%mdl 32]} (6... e6 7. Qa4+) 7. Nxg6 {[%emt 0:00:00]} hxg6 {[%emt 0:00:14]} 8. cxd5 {[%emt 0:00:00] The position is equal.} cxd4 {[%emt 0:04:03]} (8... Qxd5 {simplifies} 9. Nc3 Qxd4 10. Qxd4 cxd4 11. Nb5 Na6) 9. e4 $1 {[%emt 0:00:00]} dxe3 {[%emt 0:03:39]} 10. Nc3 {[%emt 0:00:00]} Rh5 {[%emt 0:08:43]} (10... e5 $14) 11. Bb5+ $16 {[%emt 0:00:00]} ({Of course not} 11. Bxe3 $6 Nxd5 12. Bc4 e6 13. Bxd5 exd5 $11) 11... Nbd7 {[%emt 0:00:33]} 12. g4 {[%emt 0:00:00]} Rh3 {[%emt 0:04:17] [#]} (12... Rh4 $142) 13. Bf1 $1 {[%emt 0:00:00]} (13. Bxe3 Nxg4 14. fxg4 Rxe3+ 15. Kf2 Re5 $16) 13... Rh8 {[%emt 0:08:36]} 14. Bxe3 {[%emt 0:00:00]} g5 {[%emt 0:05:26]} 15. Bxg5 {[%emt 0:00:00] White is more active.} g6 {[%emt 0:00:05]} (15... Qb6 $16 16. Qb3 Qxb3 17. axb3 g6) 16. d6 {[%emt 0:00:00] Bxf6 would now be deadly.} Qb6 {[%emt 0:09:41]} 17. Rc1 {[%emt 0:00:00]} (17. Qe2 $142) 17... a6 {[%emt 0:04:53]} 18. Qd2 {[%emt 0:00:00]} e6 {[%emt 0:01:51]} (18... Rd8 $16 {was worth a try.}) 19. Rd1 $18 {[%emt 0:00:00]} Bg7 {[%emt 0:00:47]} 20. Be3 {[%emt 0:00:00] A strong pair of Bishops.} Qa5 {[%emt 0:01:13]} 21. Be2 {[%emt 0:00:00]} Ne5 {[%emt 0:08:35]} (21... Rc8 $16 22. O-O Rh4) 22. Kf1 {[%emt 0:00:10]} Nfd7 {[%emt 0:00:50]} 23. Kg2 {[%emt 0:02:56]} Rc8 {[%emt 0:00:38]} 24. Rc1 {[%emt 0:00:40][%cal Oc3d5] Nd5! is the strong threat.} Qd8 $2 {[%emt 0:01:12] Black cannot hold the game after this.} (24... Rc6 $16 {was necessary.} 25. Ne4 Qxd2 26. Bxd2 f5) 25. Ne4 {[%emt 0:00:17]} Nc6 {[%emt 0:01:24] [#]} 26. h4 $1 {[%emt 0:01:15][%mdl 512]} Kf8 {[%emt 0:01:04]} (26... Nce5 27. Rxc8) 27. b4 {[%emt 0:01:26]} Nf6 {[%emt 0:02:02][%cal Bd7f6,Bf6d5,Bd5c7][%mdl 32]} 28. Nc5 {[%emt 0:01:19]} Nd5 {[%emt 0:00:41]} 29. Nxb7 {[%emt 0:00:16]} Qd7 {[%emt 0:00:53]} 30. Bxa6 {[%emt 0:00:11]} Ncxb4 $2 {[%emt 0:00:56]} (30... Ra8) 31. Rxc8+ {[%emt 0:01:34] White is clearly winning.} Qxc8 {[%emt 0:00:02]} 32. Rc1 {[%emt 0:00:21]} Qd7 {[%emt 0:01:08] [#]} 33. Rc7 $1 {[%emt 0:02:32][%mdl 512]} Nxc7 {[%emt 0:00:13]} 34. Nc5 {[%emt 0:00:36]} (34. Qxb4 $2 {is the wrong capture.} Nxa6 35. Qa3 Nb8 $19 (35... Qxb7 $2 36. d7+ Kg8 37. d8=Q+ Kh7 38. Qde7 $18)) 34... Qd8 {[%emt 0:01:43]} 35. Bg5 {[%emt 0:00:21] Weighted Error Value: White=0.14 (very precise) /Black=0.34.  Loses game:     	---       	Black=1      Mistake:       	White=1     	Black=6      Inaccurate:     	---       	Black=1      OK:         	White=10    	Black=7      Best:        	White=3     	Black=2      Strong:       	White=1     	---} ({Inferior is} 35. Qxb4 Nd5 36. Bg5 Nxb4 $15) 1-0

[Event "Djerba Festival Masters 2024"]
[Site "Djerba"]
[Date "2024.02.18"]
[Round "1.3"]
[White "Divya Deshmukh"]
[Black "Bellahcene, Bilel"]
[Result "0-1"]
[ECO "C06"]
[WhiteElo "2420"]
[BlackElo "2516"]
[Annotator "RC"]
[PlyCount "86"]
[EventDate "2024.02.18"]
[EventType "tourn"]
[EventCountry "TUN"]
[SourceTitle "playchess.com"]
[Source "ChessBase"]
[SourceQuality "1"]
[TimeControl "5400+30"]

1. e4 {[%emt 0:00:03]} e6 {[%emt 0:00:04]} 2. d4 {[%emt 0:00:13]} d5 {[%emt 0:00:06]} 3. Nd2 {[%emt 0:00:06]} Be7 {[%emt 0:00:05]} 4. Ngf3 {[%emt 0:00:11]} Nf6 {[%emt 0:00:42]} 5. e5 {[%emt 0:00:06]} Nfd7 {[%emt 0:00:03]} 6. Bd3 {[%emt 0:00:04]} c5 {[%emt 0:00:02]} 7. c3 {[%emt 0:00:04]} Nc6 {[%emt 0:00:02]} 8. O-O {[%emt 0:00:19]} a5 {[%emt 0:00:03]} 9. Re1 {[%emt 0:05:54]} cxd4 {[%emt 0:00:46]} 10. cxd4 {[%emt 0:01:14]} Qb6 {[%emt 0:00:05]} 11. Qa4 {[%emt 0:19:48]} g5 {[%emt 0:23:02]} 12. h3 {[%emt 0:01:27]} h5 {[%emt 0:01:10]} 13. g4 {[%emt 0:07:57]} hxg4 {[%emt 0:00:43]} 14. hxg4 {[%emt 0:01:12]} Nf8 {[%emt 0:00:05]} 15. Qd1 {[%emt 0:21:31]} Bd7 {[%emt 0:05:09]} 16. Nf1 {[%emt 0:04:15]} Nxd4 {[%emt 0:03:19]} 17. Nxg5 {[%emt 0:05:02]} Qd8 {[%emt 0:29:19]} 18. Nf3 {[%emt 0:02:03]} Nxf3+ {[%emt 0:00:15]} 19. Qxf3 {[%emt 0:00:03]} Bb4 {[%emt 0:00:21]} 20. Rd1 {[%emt 0:04:17]} Qh4 {[%emt 0:02:12]} 21. Bf4 {[%emt 0:04:23]} Ng6 {[%emt 0:03:01]} 22. Bxg6 {[%emt 0:02:45]} fxg6 {[%emt 0:01:07]} 23. Bg3 {[%emt 0:00:26]} Qh7 {[%emt 0:03:40]} 24. Rac1 {[%emt 0:01:00]} Bc6 {[%emt 0:00:24]} 25. Rd4 {[%emt 0:07:14]} Be7 {[%emt 0:01:26]} 26. Ne3 {[%emt 0:00:51]} Bd8 {[%emt 0:02:36]} 27. Qg2 {[%emt 0:10:16]} g5 {[%emt 0:02:12]} 28. Nf1 {[%emt 0:01:03]} Bb6 {[%emt 0:00:39]} 29. Rd2 {[%emt 0:00:08]} O-O-O {[%emt 0:00:21]} 30. Rdc2 {[%emt 0:00:14]} Qd7 {[%emt 0:00:25]} 31. Nh2 {[%emt 0:01:10]} Kb8 {[%emt 0:02:06]} 32. Qf3 {[%emt 0:00:39]} Rc8 {[%emt 0:00:29]} 33. Qa3 {[%emt 0:00:29]} Rh3 {[%emt 0:01:17]} 34. Kg2 {[%emt 0:00:30]} Qh7 {[%emt 0:03:01]} 35. Nf3 {[%emt 0:00:26]} Rh8 {[%emt 0:01:21]} 36. Qd6+ {[%emt 0:00:35]} Bc7 {[%emt 0:00:16]} 37. Qc5 {[%emt 0:00:25]} d4 {[%emt 0:01:19]} 38. Qxd4 {[%emt 0:00:34]} Rxg3+ {[%emt 0:00:42]} 39. fxg3 {[%emt 0:00:11]} Qh2+ {[%emt 0:01:22]} 40. Kf1 {[%emt 0:00:01]} Qxg3 {[%emt 0:03:39]} 41. Qf2 {[%emt 0:01:18]} Bb5+ {[%emt 0:06:07]} 42. Rc4 {[%emt 0:00:02]} Qf4 {[%emt 0:00:33]} 43. Nd2 {[%emt 0:00:59]} Rh1+ {[%emt 0:00:15]} 0-1

[Event "Djerba Festival Masters 2024"]
[Site "Djerba"]
[Date "2024.02.18"]
[Round "1.4"]
[White "Ivanchuk, Vasyl"]
[Black "Maurizzi, Marc`Andria"]
[Result "1/2-1/2"]
[ECO "C67"]
[WhiteElo "2623"]
[BlackElo "2572"]
[Annotator "TA"]
[PlyCount "60"]
[EventDate "2024.02.18"]
[EventType "tourn"]
[EventCountry "TUN"]
[SourceTitle "playchess.com"]
[Source "ChessBase"]
[SourceQuality "1"]
[TimeControl "5400+30"]

{[%evp 21,60,8,31,26,43,39,43,35,36,18,14,14,22,18,47,27,24,27,39,49,51,12,3,0,23,0,0,0,19,0,0,0,0,0,0,0,0,0,0,0,0]} 1. e4 {[%emt 1:31:00]} e5 {[%emt 1:31:00]} 2. Nf3 {[%emt 0:00:30]} Nc6 {[%emt 0:00:30]} 3. Bb5 {[%emt 0:00:30]} Nf6 {[%emt 0:00:30]} 4. O-O {[%emt 0:00:30]} Nxe4 {[%emt 0:00:30]} 5. d4 {[%emt 0:00:30]} Nd6 {[%emt 0:00:30]} 6. Bxc6 {[%emt 0:00:30]} dxc6 {[%emt 0:00:30]} 7. dxe5 {[%emt 0:00:00]} Nf5 {[%emt 0:00:30]} 8. Qxd8+ {[%emt 0:01:00]} Kxd8 {[%emt 0:00:30]} 9. h3 {[%emt 0:00:30]} Ke8 {[%emt 0:00:00]} 10. Nc3 {[%emt 0:00:00]} a5 {[%emt 0:01:00][%cal Ba7a5,Ba5a4,Ba4a3][%mdl 32]} 11. Rd1 {[%emt 0:01:00]} a4 {[%emt 0:00:00]} 12. Bd2 {[%emt 0:00:00]} Be6 {[%emt 0:00:00]} 13. b3 {[%emt 0:00:00]} a3 {[%emt 0:00:00]} 14. Rac1 {[%emt 0:00:00] White is slightly better.} Be7 {[%emt 0:00:00]} 15. g4 {[%emt 0:00:00]} Nh4 {[%emt 0:00:00]} 16. Nxh4 {[%emt 0:00:00]} Bxh4 {[%emt 0:00:00]} 17. Ne2 {[%emt 0:00:00]} Rd8 {[%emt 0:03:30]} 18. Nf4 {[%emt 0:03:30]} Bd5 {[%emt 0:00:30]} 19. Nxd5 {[%emt 0:00:30]} cxd5 {[%emt 0:00:30]} 20. Be3 {[%emt 0:00:30]} Be7 {[%emt 0:00:30]} 21. c4 {[%emt 0:00:30]} dxc4 {[%emt 0:00:30]} 22. Rxd8+ {[%emt 0:00:30]} Kxd8 {[%emt 0:00:30]} 23. Rxc4 $11 {[%emt 0:00:30][%mdl 4096] Endgame. KRB-KRB} Kd7 {[%emt 0:00:30] The position is equal.} 24. Kg2 {[%emt 0:00:30]} b5 {[%emt 0:00:30]} 25. Rc2 {[%emt 0:00:30]} h5 {[%emt 0:00:30]} 26. Kf3 {[%emt 0:00:30]} hxg4+ {[%emt 0:00:30]} 27. hxg4 Rh3+ {[%emt 0:00:30]} 28. Ke4 {[%emt 0:01:00]} Rh4 {[%emt 0:00:30]} 29. Kf3 {[%emt 0:00:30]} Rh3+ {[%emt 0:00:30]} 30. Ke4 {[%emt 0:00:00]} Rh4 {[%emt 0:00:00] Weighted Error Value: White=0.07 (flawless) /Black=0.06 (flawless) .  Inaccurate:     	White=1     	Black=1      OK:         	White=5     	Black=11} 1/2-1/2

[Event "Djerba Festival Masters 2024"]
[Site "Djerba"]
[Date "2024.02.19"]
[Round "2.1"]
[White "Dardha, Daniel"]
[Black "Maurizzi, Marc`Andria"]
[Result "1/2-1/2"]
[ECO "D04"]
[WhiteElo "2602"]
[BlackElo "2572"]
[Annotator "ChessBase"]
[PlyCount "134"]
[EventDate "2024.02.18"]
[EventType "tourn"]
[EventCountry "TUN"]
[SourceTitle "playchess.com"]
[Source "ChessBase"]
[SourceQuality "1"]
[TimeControl "5400+30"]

{[%evp 0,134,26,18,25,8,20,18,40,14,38,37,68,48,31,20,22,15,23,9,16,16,-1,12,35,2,0,-13,-7,-1,9,-3,-3,2,28,17,28,31,20,19,9,9,21,38,34,40,12,12,20,9,20,-37,-27,-27,-21,-22,-22,-16,-6,-8,-15,0,0,0,0,8,23,26,26,-4,48,79,76,67,67,67,68,43,60,60,60,60,60,60,71,22,91,43,49,61,85,85,64,64,91,64,64,64,79,92,84,87,82,92,85,85,87,87,85,87,87,87,87,87,90,87,87,85,85,85,84,77,83,83,83,83,83,83,84,84,84,83,83,0,0,0,0]} 1. d4 {[%emt 0:00:06]} d5 {[%emt 0:00:03]} 2. e3 {[%emt 0:00:32]} Nf6 {65} 3. Nf3 {[%emt 0:00:09]} Nbd7 {140} 4. Bd3 {272} c5 {119} 5. b3 {[%emt 0:00:34]} g6 {79} 6. Bb2 {66} Bg7 {[%emt 0:00:11]} 7. O-O {96} O-O {[%emt 0:00:17]} 8. Nbd2 {403} e5 {407} 9. Nxe5 {216} Nxe5 {[%emt 0:00:45]} 10. dxe5 {[%emt 0:00:12]} Ng4 {[%emt 0:00:03]} 11. Nf3 {[%emt 0:00:27]} Qe7 {545} 12. b4 {577} cxb4 {550} 13. a3 {126} Nxe5 {168} 14. Bxe5 {[%emt 0:00:21]} Bxe5 {[%emt 0:00:04]} 15. Nxe5 {[%emt 0:00:07]} Qxe5 {[%emt 0:00:03]} 16. axb4 {[%emt 0:00:11]} Bf5 {[%emt 0:00:17]} 17. Bxf5 {239} Qxf5 {[%emt 0:00:06]} 18. Ra5 {[%emt 0:00:04]} Rfd8 {207} 19. c3 {853} b6 {1106} 20. Ra3 {85} a5 {485} 21. Qd4 {374} axb4 {276} 22. Rxa8 {[%emt 0:00:17]} Rxa8 {[%emt 0:00:03]} 23. cxb4 {72} b5 {116} 24. h3 {259} Qe4 {193} 25. Qxe4 {361} dxe4 {[%emt 0:00:42]} 26. Rd1 {[%emt 0:00:06]} Ra4 {104} 27. Rd4 {[%emt 0:00:14]} f5 {[%emt 0:00:02]} 28. g4 {[%emt 0:00:05]} Kf7 {61} 29. gxf5 {343} gxf5 {[%emt 0:00:03]} 30. Rd5 {[%emt 0:00:14]} Rxb4 {[%emt 0:00:31]} 31. Rxf5+ {[%emt 0:00:05]} Kg6 {383} 32. Rd5 {[%emt 0:00:33]} Kf6 {260} 33. Kg2 {1821} Rb1 {140} 34. Rh5 {[%emt 0:00:00]} Kg6 {[%emt 0:00:39]} 35. Re5 {[%emt 0:00:00]} Rb4 {[%emt 0:00:03]} 36. Kg3 {[%emt 0:00:00]} Kf6 {[%emt 0:00:43]} 37. Rh5 {[%emt 0:00:00]} Kg6 {[%emt 0:00:44]} 38. Rd5 {[%emt 0:00:00]} Kf6 {71} 39. Rd6+ {[%emt 0:00:00]} Kf7 {209} 40. Rh6 {[%emt 0:00:00]} Kg7 {[%emt 0:00:09]} 41. Rb6 {[%emt 0:00:00]} Kf7 {[%emt 0:00:49]} 42. h4 {[%emt 0:00:00]} Rb1 {77} 43. Rh6 {[%emt 0:00:00]} Kg7 {155} 44. Re6 {[%emt 0:00:00]} Rb4 {[%emt 0:00:06]} 45. Re5 {[%emt 0:00:00]} Kf6 {67} 46. Rd5 {[%emt 0:00:00]} Rb1 {101} 47. Rh5 {[%emt 0:00:00]} Kg6 {[%emt 0:00:49]} 48. Re5 {[%emt 0:00:00]} Rb4 {[%emt 0:00:09]} 49. h5+ {[%emt 0:00:00]} Kf6 {[%emt 0:00:23]} 50. Kf4 {[%emt 0:00:00]} Rb2 {[%emt 0:00:06]} 51. Kxe4 {73} Rxf2 {[%emt 0:00:52]} 52. Rxb5 {[%emt 0:00:04]} Rh2 {[%emt 0:00:53]} 53. Rf5+ {98} Ke6 {[%emt 0:00:08]} 54. Ra5 {[%emt 0:00:18]} Kf6 {79} 55. Kf4 {[%emt 0:00:06]} Rh4+ {[%emt 0:00:07]} 56. Kg3 {[%emt 0:00:09]} Rb4 {[%emt 0:00:27]} 57. Kf3 {83} Rb1 {[%emt 0:00:36]} 58. Ra7 {69} h6 {[%emt 0:00:56]} 59. Ra6+ {[%emt 0:00:07]} Kg5 {[%emt 0:00:14]} 60. Ra5+ {[%emt 0:00:07]} Kf6 {[%emt 0:00:44]} 61. Kf4 {97} Rf1+ {[%emt 0:00:15]} 62. Ke4 {[%emt 0:00:07]} Rh1 {[%emt 0:00:15]} 63. Rb5 {[%emt 0:00:46]} Rh4+ {[%emt 0:00:37]} 64. Kd3 {[%emt 0:00:15]} Rh1 {[%emt 0:00:49]} 65. Rd5 {[%emt 0:00:56]} Ke6 {[%emt 0:00:38]} 66. e4 {[%emt 0:00:16]} Rd1+ {[%emt 0:00:04]} 67. Kc4 {[%emt 0:00:08]} Rc1+ {[%emt 0:00:05]} 1/2-1/2

[Event "Djerba Festival Masters 2024"]
[Site "Djerba"]
[Date "2024.02.19"]
[Round "2.2"]
[White "Bellahcene, Bilel"]
[Black "Ivanchuk, Vasyl"]
[Result "1/2-1/2"]
[ECO "B07"]
[WhiteElo "2516"]
[BlackElo "2623"]
[Annotator "TA"]
[PlyCount "59"]
[EventDate "2024.02.18"]
[EventType "tourn"]
[EventCountry "TUN"]
[SourceTitle "playchess.com"]
[Source "ChessBase"]
[SourceQuality "1"]
[TimeControl "5400+30"]

{[%evp 13,59,37,52,37,37,51,64,41,37,33,33,43,70,6,18,-27,-10,-29,-27,-40,-48,-36,-20,-16,-20,-67,-66,-85,-45,-40,-16,-93,-89,-131,-70,-83,-107,-105,-89,-107,-69,-90,0,-183,0,-69,0,-122]} 1. e4 {[%emt 0:00:03]} d6 {[%emt 0:00:04]} 2. d4 {[%emt 0:00:11]} Nf6 {[%emt 0:00:05]} 3. Nc3 {[%emt 0:00:20]} g6 {[%emt 0:00:06]} 4. Be3 {[%emt 0:00:22]} c6 {[%emt 0:00:07]} 5. Qd2 {[%emt 0:00:24]} b5 {[%emt 0:00:54]} 6. f3 {[%emt 0:00:07]} Nbd7 {[%emt 0:00:29]} 7. g4 {[%emt 0:09:36]} Nb6 {[%emt 0:00:44]} 8. h4 {[%emt 0:08:34]} h6 {[%emt 0:03:22][%cal Bh7h6,Bh6h5][%mdl 32]} 9. Bd3 {[%emt 0:05:19]} Qc7 {[%emt 0:01:43]} 10. Nce2 {[%emt 0:06:59] White is slightly better.} a6 {[%emt 0:05:11]} 11. Ng3 {[%emt 0:02:39]} c5 {[%emt 0:01:35]} 12. c3 {[%emt 0:03:09]} e5 {[%emt 0:04:56]} 13. d5 {[%emt 0:03:12]} (13. h5 $14) 13... h5 $1 $11 {[%emt 0:02:19]} 14. g5 {[%emt 0:15:52]} Nfd7 {[%emt 0:00:18]} 15. N1e2 {[%emt 0:01:25]} Bg7 {[%emt 0:03:02]} 16. Kf2 {[%emt 0:00:55]} c4 {[%emt 0:00:35]} 17. Bc2 {[%emt 0:00:03]} Nc5 {[%emt 0:00:05]} 18. Kg2 {[%emt 0:00:55]} a5 {[%emt 0:02:48]} 19. f4 {[%emt 0:01:27]} (19. Rab1 $11) 19... exf4 $15 {[%emt 0:00:09]} 20. Bxf4 {[%emt 0:00:01]} Bg4 {[%emt 0:03:08]} 21. Nd4 {[%emt 0:10:18]} Qd7 {[%emt 0:00:09]} 22. Kh2 {[%emt 0:01:11]} (22. Nc6 $11 {keeps the balance.}) 22... O-O $17 {[%emt 0:01:10]} 23. Rhf1 {[%emt 0:00:32] [#]} b4 $1 {[%emt 0:04:35][%mdl 512]} 24. Nc6 $15 {[%emt 0:03:56]} b3 $1 {[%emt 0:01:35]} 25. axb3 {[%emt 0:01:02]} cxb3 {[%emt 0:00:02]} 26. Bd3 {[%emt 0:00:17] Dodges Nc4} a4 {[%emt 0:01:34][%cal Oa4a3]} 27. Bb5 {[%emt 0:03:10] [#]} Ra5 {[%emt 0:01:09]} 28. Be2 $2 {[%emt 0:04:28] [#]} (28. Nxa5 $11 {and White has nothing to worry.} Qxb5 29. c4) 28... Raa8 {[%emt 0:02:19]} (28... Bxe2 $1 $19 29. Qxe2 Raa8) 29. Bb5 {[%emt 0:00:32] [#]} Ra5 {[%emt 0:01:31]} 30. Be2 {[%emt 0:00:08] Weighted Error Value: White=0.30/Black=0.28 (precise) .  Loses game:     	White=1     	---        Mistake:       	White=4     	Black=4      Inaccurate:     	White=2     	Black=2      OK:         	White=7     	Black=6      Best:        	White=1     	Black=3      Strong:       	---       	Black=2} (30. Nxa5 $11 Qxb5 31. c4) 1/2-1/2

[Event "Djerba Festival Masters 2024"]
[Site "Djerba"]
[Date "2024.02.19"]
[Round "2.3"]
[White "Tari, Aryan"]
[Black "Divya Deshmukh"]
[Result "1-0"]
[ECO "A36"]
[WhiteElo "2623"]
[BlackElo "2420"]
[Annotator "TA"]
[PlyCount "73"]
[EventDate "2024.02.18"]
[EventType "tourn"]
[EventCountry "TUN"]
[SourceTitle "playchess.com"]
[Source "ChessBase"]
[SourceQuality "1"]
[TimeControl "5400+30"]

{[%evp 14,73,30,26,42,42,55,41,48,28,51,-8,-7,-18,-3,-77,-17,-62,-38,-65,24,0,4,-14,-16,-31,57,35,116,124,189,30,226,207,213,236,330,326,318,314,377,383,420,419,436,426,502,474,477,501,494,457,583,577,564,556,554,549,557,567,559,529]} 1. c4 {[%emt 0:00:04]} c5 {[%emt 0:00:29]} 2. g3 {[%emt 0:00:31]} g6 {[%emt 0:01:43]} 3. Bg2 {[%emt 0:00:07]} Bg7 {[%emt 0:00:21]} 4. Nc3 {[%emt 0:00:09]} Nf6 {[%emt 0:00:38]} 5. a3 {[%emt 0:05:12]} Nc6 {[%emt 0:01:52]} 6. Rb1 {[%emt 0:00:32]} O-O {[%emt 0:09:09]} 7. b4 {[%emt 0:00:24]} d6 {[%emt 0:07:00]} 8. d3 {[%emt 0:05:49]} a6 {[%emt 0:14:24]} 9. bxc5 {[%emt 0:12:53]} dxc5 {[%emt 0:05:58]} 10. Bd2 {[%emt 0:11:04]} Qc7 {[%emt 0:03:45] White is slightly better.} 11. Nh3 {[%emt 0:02:12]} h6 {[%emt 0:06:13]} 12. Nf4 {[%emt 0:03:35]} (12. O-O $14) 12... e6 $11 {[%emt 0:00:52]} 13. h4 {[%emt 0:02:14]} Rb8 {[%emt 0:06:05]} 14. e3 {[%emt 0:05:42]} (14. Qc1 $11) 14... Ne7 {[%emt 0:01:45]} (14... b6 $17) 15. a4 {[%emt 0:10:30]} Bd7 {[%emt 0:03:22]} 16. e4 {[%emt 0:05:34]} e5 {[%emt 0:07:19]} (16... Nc6 $15) 17. Nfe2 {[%emt 0:01:30][%cal Oa4a5]} Qd6 {[%emt 0:01:22]} 18. Qb3 {[%emt 0:08:35]} Nc6 {[%emt 0:01:22]} 19. Nd5 {[%emt 0:00:14]} Nxd5 {[%emt 0:01:06]} (19... b5 $1 $15 20. axb5 (20. cxb5 axb5 21. axb5 Nxd5 $11) 20... axb5 21. cxb5 Nxd5 22. Qxd5 Qe7) 20. cxd5 {[%emt 0:01:34]} Ne7 {[%emt 0:00:37]} ({Black should play} 20... Nb4 $14) 21. a5 $16 {[%emt 0:02:22]} f5 {[%emt 0:00:12]} (21... Nc8 $16 {might work better.}) 22. Be3 $2 {[%emt 0:05:14]} (22. Qa3 $18 {aiming for Rb6.} b5 23. axb6 Rxb6 24. Rxb6 Qxb6 25. O-O) 22... Bb5 $2 {[%emt 0:23:47] [#] Black cannot hold the game after this.} (22... f4 $11 23. gxf4 exf4 24. Nxf4 Rxf4) 23. Qa3 $1 $18 {[%emt 0:01:17]} Rbc8 {[%emt 0:00:34]} 24. Rc1 {[%emt 0:02:32][%cal Bb1c1,Bc1c5,Bc5c7][%mdl 32]} f4 {[%emt 0:01:03]} 25. Bxc5 {[%emt 0:01:18]} Rxc5 {[%emt 0:00:11]} 26. Qxc5 {[%emt 0:00:18]} Qxc5 {[%emt 0:01:06]} 27. Rxc5 {[%emt 0:00:04]} f3 {[%emt 0:00:02]} 28. Bh3 {[%emt 0:00:22][%cal Bg2h3,Bh3e6,Be6d7][%mdl 32]} fxe2 {[%emt 0:01:06]} 29. Kxe2 {[%emt 0:00:05] White is clearly winning.} Rb8 {[%emt 0:00:52]} 30. Be6+ {[%emt 0:00:59]} Kh8 {[%emt 0:00:01]} 31. Rc7 {[%emt 0:01:16]} Bf8 {[%emt 0:00:08]} 32. Bd7 {[%emt 0:02:22]} Nxd5 {[%emt 0:01:32]} 33. exd5 {[%emt 0:00:26]} Bd6 {[%emt 0:00:01] [#]} 34. Rhc1 {[%emt 0:02:20][%cal Od7b5] Bxb5! is the strong threat.} Bc6 {[%emt 0:01:01]} 35. Rc8+ {[%emt 0:01:03]} Rxc8 {[%emt 0:00:22]} 36. Bxc8 {[%emt 0:00:06]} Bxd5 {[%emt 0:00:02]} 37. Rb1 {[%emt 0:00:13] Weighted Error Value: White=0.28 (precise) /Black=0.46.  Loses game:     	---       	Black=1      Mistake:       	White=3     	Black=5      Inaccurate:     	White=2     	Black=1      OK:         	White=11    	Black=7      Best:        	White=1     	Black=2} 1-0